bitfinex-derivatives/quotes_BNBF0:USTF0_20250221
["timestamp","ask_amount","ask_price","bid_price","bid_amount"]
[1740181825367,2.98383246,647.81,646.58,0.775]
[1740181825567,2.14077147,647.8,646.58,0.775]
[1740181825764,2.14077147,647.79,646.58,0.775]
[1740181825965,2.14084796,647.78,646.58,0.775]
[1740181826164,2.14084796,647.77,646.58,0.775]
[1740181826363,1.61343914,648.15,646.58,0.775]
[1740181826364,2.98390895,647.76,646.58,0.775]
[1740181826565,2.14084796,647.75,646.58,0.775]
[1740181826764,2.14084796,647.74,646.58,0.775]
[1740181826968,2.14084796,647.73,646.58,0.775]
[1740181827169,1.39587308,647.72,646.58,0.775]
[1740181827366,1.12623939,647.71,646.58,0.775]
[1740181827562,0.2831784,647.7,646.58,0.775]
[1740181827973,0.2831784,648.2,646.59,0.2822058]
[1740181828266,2.14079657,648.19,646.59,0.2822058]
[1740181828463,1.15624612,648.21,646.59,0.2822058]
[1740181828464,2.98386269,648.18,646.59,0.2822058]
[1740181828666,2.14079657,648.17,646.59,0.2822058]
[1740181828863,2.98386269,648.16,646.59,0.2822058]
[1740181829064,2.14079657,648.15,646.59,0.2822058]
[1740181829264,2.14079657,648.14,646.59,0.2822058]
[1740181829464,0.30858482,648.12,646.59,0.2822058]
[1740181829667,2.14079657,648.11,646.59,0.2822058]
[1740181829870,0.30859911,648.09,646.59,0.2822058]
[1740181830064,2.14085639,648.08,646.59,0.2822058]
[1740181830270,2.14085639,648.07,646.65,1.15166835]
[1740181830571,2.44946978,648.06,646.65,1.15166835]
[1740181830765,2.44947455,648.05,646.65,1.15166835]
[1740181830968,2.44947931,648.04,646.65,1.15166835]
[1740181831171,3.29255019,648.03,646.65,1.15166835]
[1740181831471,2.44948883,648.02,646.65,1.15166835]
[1740181831770,3.29255972,648.01,646.65,1.15166835]
[1740181831964,2.44980845,648.0,646.65,1.15166835]
[1740181832167,3.29287933,647.99,646.65,1.15166835]
[1740181832370,3.29287933,647.99,646.69,1.15166835]
[1740181832371,2.44981798,647.98,646.69,1.15166835]
[1740181832569,2.44982274,647.97,646.69,1.15166835]
[1740181832768,2.4498275,647.96,646.69,1.15166835]
[1740181832967,2.44983227,647.95,646.69,1.15166835]
[1740181833170,2.44983703,647.94,646.69,1.15166835]
[1740181833467,3.29290791,647.93,646.69,1.15166835]
[1740181833773,2.16666816,647.92,646.69,1.15166835]
[1740181833969,3.29303934,647.91,646.69,1.15166835]
[1740181834166,2.14128838,647.9,646.69,1.15166835]
[1740181834369,2.9843545,647.89,646.69,1.15166835]
[1740181834566,2.14128838,647.88,646.69,1.15166835]
[1740181834767,2.14128838,647.87,646.69,1.15166835]
[1740181834974,2.14128838,647.86,646.69,1.15166835]
[1740181835175,2.14128633,647.85,646.69,1.15166835]
[1740181835368,2.14128633,647.84,646.69,1.15166835]
[1740181835667,2.98435245,647.83,646.69,1.15166835]
[1740181835869,2.14128633,647.82,646.69,1.15166835]
[1740181836073,2.98435245,647.81,646.69,1.15166835]
[1740181836375,1.39624043,647.8,646.7,0.28209721]
[1740181836673,0.28316355,647.79,646.7,0.28209721]
[1740181837074,0.28316355,647.9,646.7,0.28209721]
[1740181837275,2.14180251,647.89,646.7,0.28209721]
[1740181837471,2.14180251,647.88,646.7,0.28209721]
[1740181837668,2.14180251,647.87,646.7,1.43376556]
[1740181837871,2.14180251,647.86,646.71,0.28209721]
[1740181838069,0.28316355,647.85,646.7,1.15166835]
[1740181838876,1.108,647.84,646.7,1.15166835]
[1740181840075,1.108,647.84,646.58,0.775]
[1740181840374,1.108,647.84,646.59,0.59125183]
[1740181840579,1.108,647.84,646.6,0.28193681]
[1740181840970,1.108,647.84,646.61,0.30930545]
[1740181841172,1.108,647.84,646.62,0.28193681]
[1740181841377,1.108,647.84,646.63,0.30929588]
[1740181841576,1.108,647.84,646.64,0.28193681]
[1740181841776,0.786,647.83,646.65,0.30928632]
[1740181841976,0.786,647.83,646.66,0.28193681]
[1740181842180,0.786,647.83,646.67,0.30927675]
[1740181842379,0.786,647.83,646.68,0.28193681]
[1740181842578,0.786,647.83,646.69,0.30926719]
[1740181842877,0.786,647.83,646.7,0.28193681]
[1740181843077,0.786,647.83,646.71,0.30925762]
[1740181846978,0.28309564,647.82,646.72,0.28215033]
[1740181847181,0.786,647.83,646.73,0.30924806]
[1740181857086,0.28310402,647.82,646.73,0.30924806]
[1740181857783,0.28311479,647.81,646.73,0.30924806]
[1740181857979,1.108,647.84,646.73,0.30924806]
[1740181858186,0.28310505,647.83,646.73,0.30924806]
[1740181862989,0.28310505,647.9,646.73,0.30924806]
[1740181863182,0.28310505,647.89,646.73,0.30924806]
[1740181863387,0.28310505,647.9,646.73,0.30924806]
[1740181863686,0.28310505,647.89,646.73,0.30924806]
[1740181863887,0.28310505,647.9,646.73,0.30924806]
[1740181864186,0.30868484,647.91,646.73,0.30924806]
[1740181864187,0.28310505,647.89,646.73,0.30924806]
[1740181864383,0.28310505,647.88,646.73,0.30924806]
[1740181864687,0.28310505,647.87,646.73,0.30924806]
[1740181864889,0.28310505,647.9,646.73,0.30924806]
[1740181865086,0.30868484,647.91,646.73,0.30924806]
[1740181865288,0.28311003,647.9,646.73,0.30924806]
[1740181866688,0.30868484,647.91,646.73,0.30924806]
[1740181866884,0.28310862,647.9,646.73,0.30924806]
[1740181869888,0.30868484,647.91,646.73,0.30924806]
[1740181870191,0.28312499,647.9,646.73,0.30924806]
[1740181871591,0.28312502,647.89,646.73,0.30924806]
[1740181871795,0.28312502,647.88,646.73,0.30924806]
[1740181872095,0.28312502,647.87,646.73,0.30924806]
[1740181872394,0.28312502,647.86,646.73,0.30924806]
[1740181872694,0.28312502,647.85,646.77,1.15166835]
[1740181872894,0.28312502,647.84,646.77,1.15166835]
[1740181873093,0.28312502,647.9,646.77,1.15166835]
[1740181873794,0.84240267,647.89,646.77,1.15166835]
[1740181874094,0.28312502,647.88,646.77,1.15166835]
[1740181874796,0.28312502,647.9,646.77,1.15166835]
[1740181876090,0.28312502,647.9,646.73,0.30924806]
[1740181876294,0.30868484,647.91,646.73,0.30924806]
[1740181876493,1.39519202,647.9,646.73,0.30924806]
[1740181876696,0.28313631,647.89,646.73,0.30924806]
[1740181876889,0.84260978,647.89,646.73,0.30924806]
[1740181877095,0.28313631,647.88,646.73,0.30924806]
[1740181877597,0.28313631,647.9,646.73,0.30924806]
[1740181877796,0.28313631,647.89,646.73,0.30924806]
[1740181877997,0.28313631,647.88,646.73,0.30924806]
[1740181878194,0.28313631,647.9,646.73,0.30924806]
[1740181878399,0.28313631,647.89,646.74,0.828]
[1740181878597,0.28313631,647.88,646.74,0.828]
[1740181878801,0.28313631,647.9,646.74,0.828]
[1740181878996,1.39532776,647.89,646.74,0.828]
[1740181879197,0.28313631,647.88,646.74,0.828]
[1740181880196,0.28313631,647.9,646.74,0.828]
[1740181880398,1.12590183,647.89,646.74,0.828]
[1740181880593,0.28313631,647.88,646.74,0.828]
[1740181881397,0.28313631,647.87,646.74,0.828]
[1740181881697,0.28313631,647.86,646.74,0.828]
[1740181881890,0.28313631,647.85,646.74,0.828]
[1740181882096,0.28313631,647.84,646.74,0.828]
[1740181882399,0.28313631,647.83,646.74,0.828]
[1740181882599,0.30868484,647.91,646.74,0.828]
[1740181882794,1.39552483,647.9,646.74,0.828]
[1740181882994,0.28313654,647.89,646.74,0.828]
[1740181885300,0.28313654,647.89,646.75,0.28201211]
[1740181885599,0.28313654,647.89,646.74,0.828]
[1740181885804,0.875,647.9,646.74,0.828]
[1740181886100,0.28310665,647.89,646.74,0.828]
[1740181887399,0.875,647.9,646.74,0.828]
[1740181887695,0.28310544,647.89,646.74,0.828]
[1740181887900,0.28310544,647.89,646.75,1.15166835]
[1740181890598,0.28310544,647.89,646.74,0.828]
[1740181891703,1.8593416,647.88,646.74,0.828]
[1740181891904,2.14244704,647.87,646.74,0.828]
[1740181892105,2.14244704,647.86,646.74,0.828]
[1740181892302,2.14244704,647.85,646.74,0.828]
[1740181892499,2.14244704,647.84,646.74,0.828]
[1740181892701,1.39677633,647.83,646.74,0.828]
[1740181892905,1.39677633,647.82,646.74,0.828]
[1740181893098,1.39702202,647.81,646.74,0.828]
[1740181893298,0.28310544,647.8,646.74,0.828]
[1740181893504,0.28310544,647.79,646.74,0.828]
[1740181893701,0.28310544,647.81,646.74,0.828]
[1740181893902,0.28310544,647.8,646.74,0.828]
[1740181894104,0.28310544,647.89,646.74,0.828]
[1740181894296,2.14298472,647.88,646.74,0.828]
[1740181894502,2.14298472,647.87,646.74,0.828]
[1740181894701,2.98703955,647.86,646.74,0.828]
[1740181894902,2.14298472,647.85,646.74,0.828]
[1740181895100,2.14298472,647.84,646.74,0.828]
[1740181895303,1.39709637,647.83,646.74,0.828]
[1740181895504,1.39709637,647.82,646.74,0.828]
[1740181895701,0.28310544,647.81,646.74,0.828]
[1740181896606,0.28310544,647.89,646.74,0.828]
[1740181896906,2.14319868,647.88,646.74,0.828]
[1740181897207,2.14319868,647.87,646.74,0.828]
[1740181897407,2.14319868,647.86,646.74,0.828]
[1740181897607,2.14319868,647.85,646.74,0.828]
[1740181897911,2.98737876,647.84,646.74,0.828]
[1740181898107,2.14319868,647.83,646.74,0.828]
[1740181898308,1.39722478,647.82,646.74,0.828]
[1740181898512,1.39722478,647.81,646.74,0.828]
[1740181898709,0.28314852,647.8,646.74,0.828]
[1740181898911,0.28314852,647.79,646.74,0.828]
[1740181899405,0.28314852,647.89,646.74,0.828]
[1740181899606,1.85993356,647.88,646.74,0.828]
[1740181899804,2.14308208,647.87,646.74,0.828]
[1740181900004,2.14308208,647.86,646.74,0.828]
[1740181900210,2.14308208,647.85,646.74,0.828]
[1740181900512,2.1430634,647.84,646.74,0.828]
[1740181900710,2.1430634,647.83,646.74,0.828]
[1740181900915,1.39716042,647.82,646.74,0.828]
[1740181901211,2.14310243,647.81,646.74,0.828]
[1740181901407,2.14310243,647.8,646.74,0.828]
[1740181901707,1.39716042,647.79,646.74,0.828]
[1740181901913,1.1140119,647.78,646.74,0.828]
[1740181902108,2.24127583,647.77,646.74,0.828]
[1740181902310,0.28314852,647.76,646.74,0.828]
[1740181902712,0.28316641,647.75,646.74,0.828]
[1740181902907,0.28316641,647.74,646.74,0.828]
[1740181903113,0.28316641,647.73,646.74,0.828]
[1740181903311,0.28316641,647.72,646.74,0.828]
[1740181903610,0.28316641,647.71,646.74,0.828]
[1740181903815,0.28316641,647.7,646.74,0.828]
[1740181904111,1.39729555,647.69,646.74,0.828]
[1740181904311,0.28316641,647.68,646.74,0.828]
[1740181904521,0.28316641,647.67,646.74,0.828]
[1740181904713,0.28316641,647.68,646.74,0.828]
[1740181904906,1.1274017,647.67,646.74,0.828]
[1740181905107,0.28321141,647.66,646.74,0.828]
[1740181905917,0.28321141,647.65,646.74,0.828]
[1740181906213,0.28321141,647.64,646.74,0.828]
[1740181906413,0.28321141,647.82,646.74,0.828]
[1740181906616,2.16756292,647.81,646.74,0.828]
[1740181906913,2.45079068,647.8,646.74,0.828]
[1740181907114,3.29445487,647.79,646.74,0.828]
[1740181907309,2.45080021,647.78,646.74,0.828]
[1740181907509,3.2944644,647.77,646.74,0.828]
[1740181907715,2.14205342,647.76,646.74,0.828]
[1740181907914,2.14205342,647.75,646.74,0.828]
[1740181908114,2.98571284,647.74,646.74,0.828]
[1740181908415,2.14161316,647.73,646.74,0.828]
[1740181908614,2.98527258,647.72,646.74,0.828]
[1740181908815,1.39613342,647.71,646.74,0.828]
[1740181909115,1.39609747,647.7,646.74,0.828]
[1740181909312,0.28322212,647.69,646.74,0.828]
[1740181909509,0.28322212,647.71,646.74,0.828]
[1740181909711,1.39596238,647.7,646.74,0.828]
[1740181909914,0.28322212,647.69,646.74,0.828]
[1740181910115,0.28322212,647.68,646.74,0.828]
[1740181910315,0.28322212,647.67,646.74,0.828]
[1740181910518,0.28322212,647.66,646.74,0.828]
[1740181910817,0.28322212,647.65,646.74,0.828]
[1740181911116,0.28322212,647.64,646.74,0.828]
[1740181911317,0.28322212,647.63,646.74,0.828]
[1740181911512,0.28322212,647.62,646.74,0.828]
[1740181911716,0.28322212,647.61,646.74,0.828]
[1740181911918,0.28322212,647.6,646.74,0.828]
[1740181912112,0.28322212,647.59,646.74,0.828]
[1740181912316,1.92247603,647.76,646.74,0.828]
[1740181912317,0.28322212,647.75,646.74,0.828]
[1740181912516,2.14044491,647.74,646.74,0.828]
[1740181912819,2.14044491,647.73,646.74,0.828]
[1740181913013,1.39561088,647.72,646.74,0.828]
[1740181913212,1.39561088,647.71,646.74,0.828]
[1740181913414,2.2384293,647.7,646.74,0.828]
[1740181913614,0.28322212,647.69,646.74,0.828]
[1740181914710,1.92247603,647.76,646.74,0.828]
[1740181914913,1.85685253,647.75,646.74,0.828]
[1740181915218,1.85685253,647.74,646.74,0.828]
[1740181915422,1.85685253,647.73,646.74,0.828]
[1740181915621,1.11216653,647.72,646.74,0.828]
[1740181915821,1.11216653,647.71,646.74,0.828]
[1740181916022,0.84275954,647.71,646.74,0.828]
[1740181916523,0.84275954,647.7,646.74,0.828]
[1740181916823,1.92247603,647.76,646.74,0.828]
[1740181917018,1.85651439,647.75,646.74,0.828]
[1740181917222,2.13973333,647.74,646.74,0.828]
[1740181917418,2.23772857,647.73,646.74,0.828]
[1740181917619,0.28321894,647.72,646.74,0.828]
[1740181917819,0.28320909,647.71,646.74,0.828]
[1740181918023,0.28320909,647.7,646.74,0.828]
[1740181918318,0.28320909,647.69,646.74,0.828]
[1740181918521,0.28320909,647.75,646.74,0.828]
[1740181918723,1.39503772,647.74,646.74,0.828]
[1740181919021,0.28320909,647.73,646.74,0.828]
[1740181920626,0.30875632,647.76,646.74,0.828]
[1740181920825,1.39495227,647.75,646.74,0.828]
[1740181921022,2.98181525,647.74,646.74,0.828]
[1740181921227,1.39495227,647.73,646.74,0.828]
[1740181921420,0.28319529,647.72,646.74,0.828]
[1740181921621,0.84244559,647.72,646.74,0.828]
[1740181921929,0.28319529,647.71,646.74,0.828]
[1740181922123,0.30875632,647.76,646.74,0.828]
[1740181922124,0.28319529,647.75,646.74,0.828]
[1740181922324,1.39497482,647.74,646.74,0.828]
[1740181922523,1.39497482,647.73,646.74,0.828]
[1740181922722,0.28319529,647.72,646.74,0.828]
[1740181922921,0.28319529,647.71,646.74,0.828]
[1740181923226,0.28319529,647.7,646.74,0.828]
[1740181923426,0.28319529,647.75,646.74,0.828]
[1740181923628,0.30875632,647.76,646.74,0.828]
[1740181923824,1.39496799,647.75,646.74,0.828]
[1740181924029,0.28318611,647.74,646.74,0.828]
[1740181924230,0.28318611,647.73,646.74,0.828]
[1740181925324,0.30875632,647.76,646.37,1.15166835]
[1740181925325,2.23760256,647.72,646.37,1.15166835]
[1740181925529,0.28319785,647.71,646.38,0.59154512]
[1740181925723,0.28319785,647.71,646.39,0.59154033]
[1740181925928,0.28319785,647.71,646.4,0.59153555]
[1740181926127,0.28319785,647.7,646.41,0.59153076]
[1740181926330,0.28319785,647.75,646.42,0.59152597]
[1740181926525,2.13962848,647.74,646.43,0.59152119]
[1740181926731,1.39511512,647.73,646.44,0.30938679]
[1740181927031,2.23766206,647.72,646.44,0.30938679]
[1740181927226,1.12574763,647.71,646.44,0.30938679]
[1740181927426,0.28319785,647.7,646.44,0.30938679]
[1740181928028,0.28319785,647.69,646.44,0.30938679]
[1740181928231,0.28319785,647.68,646.45,0.28209226]
[1740181928429,0.28319785,647.75,646.45,0.28209226]
[1740181928625,1.39517741,647.74,646.45,0.28209226]
[1740181928828,1.39517741,647.73,646.45,0.28209226]
[1740181929030,0.28319785,647.72,646.45,0.28209226]
[1740181929327,0.84259647,647.74,646.45,0.28209226]
[1740181929328,1.48219785,647.71,646.45,0.28209226]
[1740181929526,0.28319785,647.7,646.45,0.28209226]
[1740181930135,0.28319785,647.7,646.44,0.30938679]
[1740181930730,1.199,647.71,646.44,0.30938679]
[1740181931130,1.199,647.71,646.45,0.28197776]
[1740181931326,1.199,647.71,646.46,0.30937722]
[1740181933133,1.199,647.71,646.47,0.28193347]
[1740181933333,1.199,647.71,646.48,0.30936765]
[1740181933534,1.199,647.71,646.49,0.28193347]
[1740181933729,1.199,647.71,646.5,0.30935808]
[1740181933930,1.199,647.71,646.51,0.28193347]
[1740181934234,1.199,647.71,646.52,0.30934851]
[1740181934836,1.199,647.71,646.53,0.28187532]
[1740181935136,1.199,647.71,646.54,0.30933894]
[1740181935330,1.199,647.71,646.55,0.28187532]
[1740181935533,1.199,647.71,646.56,0.30932937]
[1740181936039,0.28312241,647.7,646.57,0.28187018]
[1740181936235,1.199,647.71,646.57,0.28187018]
[1740181936435,1.199,647.71,646.58,0.3093198]
[1740181936631,1.199,647.71,646.59,0.28187018]
[1740181937031,1.199,647.71,646.6,0.30931023]
[1740181937231,1.199,647.71,646.61,0.28187018]
[1740181937437,1.199,647.71,646.62,0.30930067]
[1740181937632,1.199,647.71,646.63,0.28187018]
[1740181937837,1.199,647.71,646.63,0.59116606]
[1740181938036,1.199,647.71,646.64,0.28187018]
[1740181938639,1.199,647.71,646.65,0.30928632]
[1740181938831,1.199,647.71,646.66,0.28187018]
[1740181939032,1.199,647.71,646.67,0.30927675]
[1740181939231,1.199,647.71,646.68,0.28187018]
[1740181939432,1.199,647.71,646.69,0.30926719]
[1740181939637,1.199,647.71,646.7,0.28187018]
[1740181940132,1.199,647.71,646.71,0.30925762]
[1740181940335,1.199,647.71,646.72,0.28187018]
[1740181940535,1.199,647.71,646.73,0.30924806]
[1740181940736,1.199,647.71,646.74,0.28187018]
[1740181940936,1.199,647.71,646.75,0.3092385]
[1740181941438,1.199,647.71,646.76,0.2816722]
[1740181942733,1.199,647.71,646.75,0.3092385]
[1740181942935,1.199,647.71,646.76,0.28168979]
[1740181943532,1.199,647.71,646.76,0.5909235]
[1740181943737,1.199,647.71,646.77,0.59091872]
[1740181943941,1.199,647.71,646.57,1.15166835]
[1740181943942,1.199,647.71,646.78,0.59101181]
[1740181944136,1.199,647.71,646.78,0.30922415]
[1740181944538,1.15624612,648.67,646.78,0.30922415]
[1740181944735,0.30833269,648.65,646.78,0.30922415]
[1740181944938,2.13692168,648.64,646.78,0.30922415]
[1740181945139,0.30834695,648.62,646.78,0.30922415]
[1740181945339,2.13692168,648.61,646.78,0.30922415]
[1740181945553,2.13692168,648.6,646.78,0.30922415]
[1740181945744,2.13692168,648.59,646.78,0.30922415]
[1740181945945,2.13692168,648.58,646.78,0.30922415]
[1740181946146,2.97822915,648.57,646.78,0.30922415]
[1740181946346,2.44529715,648.56,646.78,0.30922415]
[1740181946548,0.30838498,648.54,646.78,0.30922415]
[1740181946845,2.13692168,648.53,646.78,0.30922415]
[1740181947048,2.13692168,648.52,646.79,0.28166968]
[1740181947347,0.84130747,648.53,646.79,0.28166968]
[1740181947348,2.13692168,648.51,646.79,0.28166968]
[1740181947547,2.13692168,648.5,646.79,0.28166968]
[1740181947749,2.13692168,648.49,646.79,0.28166968]
[1740181948050,2.13692168,648.48,646.78,0.30922415]
[1740181948250,2.13692168,648.47,646.79,0.28162925]
[1740181948444,2.13692168,648.46,646.79,0.28162925]
[1740181948642,2.13692168,648.45,646.79,0.28162925]
[1740181948846,2.13692168,648.44,646.79,0.28162925]
[1740181949044,2.13692168,648.43,646.79,0.28162925]
[1740181949349,2.13692168,648.42,646.79,0.28162925]
[1740181949644,0.30845157,648.4,646.79,0.28162925]
[1740181949849,2.13647395,648.39,646.79,0.28162925]
[1740181950148,2.13647395,648.38,646.79,0.28162925]
[1740181950351,2.44493979,648.37,646.79,0.28162925]
[1740181950541,2.13647395,648.36,646.79,0.28162925]
[1740181950750,2.13647395,648.35,646.79,0.28162925]
[1740181950950,2.13647395,648.34,646.79,0.28162925]
[1740181951251,2.13647395,648.33,646.79,0.28162925]
[1740181951449,2.13647395,648.32,646.79,0.28162925]
[1740181951652,2.44377188,648.31,646.79,0.28162925]
[1740181951846,3.28508411,648.3,646.79,0.28162925]
[1740181952054,2.13527749,648.29,646.79,0.28162925]
[1740181952354,2.44378615,648.28,646.79,0.28162925]
[1740181952555,2.44379091,648.27,646.79,0.28162925]
[1740181952755,2.44379567,648.26,646.79,0.28162925]
[1740181952955,2.44380043,648.25,646.79,0.28162925]
[1740181953154,2.44380519,648.24,646.8,0.30921459]
[1740181953357,2.44380995,648.23,646.81,0.28162925]
[1740181953550,2.44330063,648.22,646.81,0.28162925]
[1740181953854,2.44330539,648.21,646.81,0.59083906]
[1740181954049,2.44331015,648.2,646.82,0.28162925]
[1740181954254,2.13475326,648.19,646.81,0.30920981]
[1740181954458,2.13475326,648.18,646.82,0.28132352]
[1740181954654,2.13475326,648.17,646.82,0.28132352]
[1740181954855,2.13475326,648.16,646.82,0.28132352]
[1740181955056,1.39215779,648.15,646.82,0.28132352]
[1740181955254,2.23346526,648.14,646.82,0.28132352]
[1740181955452,0.28304838,648.13,646.82,0.28132352]
[1740181955652,1.12435585,648.13,646.82,0.28132352]
[1740181955857,0.28304838,648.12,646.82,0.28132352]
[1740181956057,0.28304838,648.11,646.82,0.28132352]
[1740181956259,0.28304838,648.19,646.82,0.28132352]
[1740181956458,2.1340693,648.18,646.82,0.28132352]
[1740181956655,2.1340693,648.17,646.82,0.28132352]
[1740181956861,1.39174909,648.16,646.82,0.28132352]
[1740181957059,1.39174909,648.15,646.82,0.28132352]
[1740181957260,1.12298167,648.14,646.83,0.2812865]
[1740181957455,0.28304597,648.13,646.81,0.30920981]
[1740181957656,0.28304597,648.13,646.82,0.28128615]
[1740181958263,0.28304597,648.12,646.82,0.28128615]
[1740181958466,0.28304597,648.19,646.81,0.30920981]
[1740181958666,2.1334885,648.18,646.81,0.30920981]
[1740181958862,2.69018012,648.17,646.81,0.30920981]
[1740181959060,1.39140438,648.16,646.82,0.28129571]
[1740181959259,1.39140438,648.15,646.82,0.28129571]
[1740181959466,0.28305072,648.14,646.82,0.28129571]
[1740181959660,0.28305072,648.16,646.82,0.28129571]
[1740181959858,0.28305072,648.15,646.82,0.28129571]
[1740181960061,0.28305072,648.19,646.82,0.28129571]
[1740181960259,0.28305072,648.18,646.82,0.28129571]
[1740181960463,0.83952748,648.18,646.82,0.28129571]
[1740181960666,0.28305072,648.17,646.82,0.28129571]
[1740181961165,0.28305072,648.19,646.82,0.28129571]
[1740181961367,0.28305072,648.18,646.82,0.28129571]
[1740181961568,0.28305072,648.19,646.82,0.28129571]
[1740181961774,0.28305072,648.18,646.82,0.59050074]
[1740181962075,0.28305072,648.17,646.83,0.28129571]
[1740181962273,0.28305072,648.19,646.83,0.28129571]
[1740181962974,0.28303513,648.18,646.84,0.28124445]
[1740181963171,0.28303513,648.17,646.82,0.30920503]
[1740181963372,0.30854674,648.2,646.82,0.30920503]
[1740181963373,0.28303513,648.19,646.82,0.30920503]
[1740181964470,0.83917669,648.18,646.82,0.30920503]
[1740181964672,0.28303513,648.17,646.82,0.30920503]
[1740181965373,0.28303513,648.19,646.82,0.30920503]
[1740181965571,0.28303513,648.18,646.82,0.30920503]
[1740181965774,1.41613666,648.17,646.82,0.30920503]
[1740181965973,2.44078104,648.16,646.82,0.30920503]
[1740181966175,3.28003649,648.15,646.82,0.30920503]
[1740181966378,2.44079056,648.14,646.82,0.30920503]
[1740181966574,1.39061077,648.13,646.82,0.30920503]
[1740181966775,1.39061077,648.12,646.82,0.30920503]
[1740181966976,0.28303513,648.11,646.82,0.30920503]
[1740181967176,0.28303513,648.1,646.82,0.30920503]
[1740181967378,0.28303513,648.09,646.82,0.30920503]
[1740181968179,0.28303513,648.08,646.82,0.30920503]
[1740181968373,0.28303513,648.07,646.82,0.30920503]
[1740181968574,0.28303513,648.06,646.82,0.30920503]
[1740181968776,0.28303513,648.13,646.82,0.30920503]
[1740181968976,1.39103049,648.12,646.82,0.30920503]
[1740181969179,1.39103049,648.11,646.82,0.30920503]
[1740181969380,0.28303513,648.1,646.82,0.30920503]
[1740181969582,0.28303513,648.11,646.82,0.30920503]
[1740181969781,1.391144,648.1,646.82,0.30920503]
[1740181969976,0.28303513,648.09,646.82,0.30920503]
[1740181970683,0.8394844,648.08,646.82,0.30920503]
[1740181970885,0.28303513,648.07,646.82,0.30920503]
[1740181971985,0.3085753,648.14,646.82,0.30920503]
[1740181971986,0.28303513,648.13,646.82,0.30920503]
[1740181972186,1.39139908,648.12,646.82,0.30920503]
[1740181972487,2.23123978,648.11,646.82,0.30920503]
[1740181972688,1.39139908,648.1,646.82,0.30920503]
[1740181972884,0.28303513,648.09,646.83,0.849]
[1740181973080,0.8398407,648.08,646.83,0.849]
[1740181973280,0.28303513,648.07,646.83,0.849]
[1740181973690,0.28303513,648.08,646.83,0.849]
[1740181973886,0.28303513,648.07,646.83,0.849]
[1740181974088,0.28303513,648.08,646.83,0.849]
[1740181974287,0.28303513,648.07,646.83,0.849]
[1740181974482,0.28303513,648.06,646.83,0.849]
[1740181974684,0.28303513,648.05,646.83,0.849]
[1740181974882,0.28303513,648.04,646.83,0.849]
[1740181975089,1.9215969,648.14,646.83,0.849]
[1740181975286,2.13440316,648.13,646.83,0.849]
[1740181975485,2.13440316,648.12,646.83,0.849]
[1740181975789,2.9747162,648.11,646.83,0.849]
[1740181975985,2.13440316,648.1,646.83,0.849]
[1740181976188,1.39195454,648.09,646.83,0.849]
[1740181976387,1.39195454,648.08,646.83,0.849]
[1740181976584,1.39195454,648.07,646.83,0.849]
[1740181976786,0.28307131,648.06,646.83,0.849]
[1740181976986,0.84031304,648.08,646.83,0.849]
[1740181976987,0.28307131,648.07,646.83,0.849]
[1740181977290,1.12338435,648.06,646.83,0.849]
[1740181977588,0.28307131,648.05,646.83,0.849]
[1740181978290,0.28307131,648.04,646.83,0.849]
[1740181978489,0.28307131,648.03,646.83,0.849]
[1740181978689,0.28307131,648.02,646.83,0.849]
[1740181978990,0.28307131,648.01,646.83,0.849]
[1740181979185,1.9215969,648.14,646.83,0.849]
[1740181979186,0.28307131,648.13,646.83,0.849]
[1740181979486,2.13622089,648.12,646.83,0.849]
[1740181979689,2.13622089,648.11,646.83,0.849]
[1740181979885,1.9215969,648.14,646.83,0.849]
[1740181979886,2.13622089,648.1,646.83,0.849]
[1740181980090,2.13622089,648.09,646.83,0.849]
[1740181980286,1.3930433,648.08,646.83,0.849]
[1740181980488,1.3930433,648.07,646.83,0.849]
[1740181980688,0.28307131,648.06,646.83,0.849]
[1740181980987,0.28307131,648.05,646.83,0.849]
[1740181981191,0.28307131,648.09,646.83,0.849]
[1740181981389,1.39309168,648.08,646.83,0.849]
[1740181981585,1.9215969,648.14,646.83,0.849]
[1740181981586,2.23414327,648.07,646.83,0.849]
[1740181981788,0.28307131,648.06,646.83,0.849]
[1740181982897,0.84105159,648.05,646.83,0.849]
[1740181983092,0.28307131,648.04,646.83,0.849]